[Event "GER-ch Youth U16 2019"]
[Site "Willingen"]
[Date "2019.06.15"]
[Round "9.9"]
[White "Koehler, Lukas"]
[Black "Koelle, Tobias"]
[Result "1/2-1/2"]
[ECO "C47"]
[WhiteElo "2068"]
[BlackElo "2215"]
[Annotator "ChessBase"]
[PlyCount "43"]
[EventDate "2019.06.07"]
[EventType "swiss"]
[EventRounds "9"]
[EventCountry "GER"]
[SourceTitle "playchess.com"]
[Source "ChessBase"]
[SourceQuality "1"]
[TimeControl "40/5400+30:1800+30"]

1. e4 {[%emt 0:00:00]} e5 {[%emt 0:00:00]} 2. Nf3 {[%emt 0:00:00]} Nc6 {[%emt 0:00:00]} 3. Nc3 {[%emt 0:00:00]} Nf6 {[%emt 0:00:00]} 4. Be2 {[%emt 0:00:00]} d5 {[%emt 0:02:37]} 5. exd5 {[%emt 0:00:07]} Nxd5 {[%emt 0:00:02]} 6. O-O {[%emt 0:00:10]} Nxc3 {[%emt 0:01:08]} 7. bxc3 {[%emt 0:00:08]} e4 {[%emt 0:01:08]} 8. Ne1 {[%emt 0:00:57]} Bd6 {[%emt 0:00:47]} 9. f3 {[%emt 0:00:07]} exf3 {[%emt 0:01:29]} 10. Nxf3 {[%emt 0:00:10]} O-O {[%emt 0:00:20]} 11. d4 {[%emt 0:00:24]} Bg4 {[%emt 0:06:27]} 12. Rb1 {[%emt 0:02:03]} Rb8 {[%emt 0:00:39]} 13. Ng5 {[%emt 0:10:12]} Bxe2 {[%emt 0:02:57]} 14. Qxe2 {[%emt 0:00:30]} h6 {[%emt 0:03:13]} 15. Ne4 {[%emt 0:07:17]} f5 {[%emt 0:22:22]} 16. Qc4+ {[%emt 0:07:42]} Kh8 {[%emt 0:02:49]} 17. Nxd6 {[%emt 0:02:04]} cxd6 {[%emt 0:00:17]} 18. Bf4 {[%emt 0:17:40]} g5 {[%emt 0:01:43]} 19. Bd2 {[%emt 0:05:02]} Qd7 {[%emt 0:01:07]} 20. Qd3 {[%emt 0:02:44]} d5 {[%emt 0:08:33]} 21. h4 {[%emt 0:10:21]} f4 {[%emt 0:02:12]} 22. hxg5 {[%emt 0:08:02] normal} 1/2-1/2

[Event "GER-ch Youth U16 2019"]
[Site "Willingen"]
[Date "2019.06.15"]
[Round "9.10"]
[White "Gutkin, Ilya"]
[Black "Liebold, Aaron"]
[Result "1-0"]
[ECO "A04"]
[WhiteElo "2041"]
[BlackElo "1870"]
[Annotator "NA"]
[PlyCount "107"]
[EventDate "2019.06.07"]
[EventType "swiss"]
[EventRounds "9"]
[EventCountry "GER"]
[SourceTitle "playchess.com"]
[Source "ChessBase"]
[SourceQuality "1"]
[TimeControl "40/5400+30:1800+30"]

1. Nf3 {[%emt 0:00:00]} b5 {[%emt 0:00:00]} 2. e3 {[%emt 0:06:11]} a6 {[%emt 0:00:30]} 3. d4 {[%emt 0:01:27]} Bb7 {[%emt 0:00:22]} 4. b3 {[%emt 0:00:11]} (4. a4 b4 5. a5 e6 6. c3 Nf6 7. Be2 c5 8. cxb4 cxd4 9. Nxd4 Bxg2 10. Rg1 Bb7 11. Bf3 Qc7 12. Bd2 Qxh2 {0-1 (55) Porper,E (2427)-Ramirez Alvarez,A (2599) Reykjavik 2014}) 4... Nf6 {[%emt 0:01:08]} 5. Bb2 {[%emt 0:00:48]} e6 {[%emt 0:00:53]} 6. Nbd2 {[%emt 0:02:16] A40: Unusual replies to 1 d4} c5 {[%emt 0:01:10]} 7. Bd3 {[%emt 0:02:53]} Be7 {[%emt 0:01:46]} 8. O-O {[%emt 0:00:28]} d5 $146 {[%emt 0:01:36]} ({Predecessor:} 8... h6 9. Re1 Qc7 10. Rc1 Rg8 11. c4 b4 12. Bf1 {1-0 (72) Kassani,S (2112)-Bressy,T (1848) Agneaux 2014}) 9. dxc5 {[%emt 0:03:07]} Bxc5 {[%emt 0:02:24]} 10. Qe2 {[%emt 0:00:09]} Nbd7 {[%emt 0:03:03]} 11. c4 {[%emt 0:04:16]} bxc4 {[%emt 0:04:51]} 12. bxc4 {[%emt 0:03:38]} Qe7 {[%emt 0:00:48]} 13. Rab1 {[%emt 0:02:45]} O-O {[%emt 0:02:22]} 14. Rfc1 {[%emt 0:07:03]} dxc4 {[%emt 0:21:33]} 15. Nxc4 {[%emt 0:02:26]} Rfc8 {[%emt 0:00:50]} 16. Na5 {[%emt 0:13:09]} Be4 {[%emt 0:06:24]} 17. Ne5 {[%emt 0:10:23]} Nxe5 {[%emt 0:07:49]} 18. Bxe5 {[%emt 0:00:17]} Bxd3 {[%emt 0:00:17]} 19. Qxd3 {[%emt 0:00:05]} Nd5 {[%emt 0:00:09]} 20. Bg3 {[%emt 0:13:16]} h6 {[%emt 0:19:40]} 21. h3 {[%emt 0:01:24]} Qg5 {[%emt 0:02:32]} 22. Kh2 {[%emt 0:02:18]} h5 {[%emt 0:02:47]} 23. h4 {[%emt 0:04:10]} Qe7 {[%emt 0:04:32]} 24. Rc4 {[%emt 0:06:52]} Nb6 {[%emt 0:06:17]} 25. Rc2 {[%emt 0:01:23]} Nd5 {[%emt 0:01:27]} 26. Qe2 {[%emt 0:00:16]} Bb4 {[%emt 0:02:08]} 27. Nc6 {[%emt 0:01:30]} Rxc6 {[%emt 0:01:02]} 28. Rxc6 {[%emt 0:00:06]} Nc3 {[%emt 0:00:04]} 29. Rxc3 {[%emt 0:00:42]} Bxc3 {[%emt 0:00:07]} 30. Qxh5 {[%emt 0:02:00]} Rd8 {[%emt 0:00:58]} 31. Qf3 {[%emt 0:02:25]} Bf6 {[%emt 0:01:21]} 32. Qe4 {[%emt 0:00:57]} Qa3 {[%emt 0:00:59]} 33. Qc4 {[%emt 0:00:37]} Qa5 {[%emt 0:02:03]} 34. Rb7 {[%emt 0:03:54]} Be5 {[%emt 0:01:33]} 35. Bf4 {[%emt 0:02:41]} Qd5 {[%emt 0:01:34]} 36. Qxd5 {[%emt 0:01:22]} Rxd5 {[%emt 0:00:04]} 37. Bxe5 {[%emt 0:00:23]} Rxe5 {[%emt 0:00:05]} 38. Rb8+ {[%emt 0:00:09]} Kh7 {[%emt 0:00:06]} 39. Rb4 {[%emt 0:00:36]} Kg6 {[%emt 0:01:15]} 40. Ra4 {[%emt 0:00:41]} a5 {[%emt 0:00:36]} 41. Kg3 {[%emt 0:03:31]} Rc5 {[%emt 0:02:01] unterminated} 42. Kf3 {[%emt 0:01:41]} Kh5 {[%emt 0:06:03]} 43. g3 {[%emt 0:03:23] unterminated} e5 {[%emt 0:03:55] unterminated} 44. a3 $14 {[%emt 0:09:34]} (44. Ke2 $16) 44... g6 {[%emt 0:05:27]} 45. Kg2 {[%emt 0:06:03]} f5 {[%emt 0:03:03]} 46. Kh3 {[%emt 0:01:34]} e4 {[%emt 0:05:14]} 47. g4+ {[%emt 0:05:46]} Kh6 {[%emt 0:02:48]} 48. Kg3 {[%emt 0:00:47]} Kg7 {[%emt 0:01:38]} 49. Kf4 {[%emt 0:02:11]} Rc2 {[%emt 0:00:54]} 50. Kg3 {[%emt 0:00:18]} Rc5 {[%emt 0:00:05]} 51. g5 {[%emt 0:00:31]} Kf7 {[%emt 0:00:43]} 52. Rd4 {[%emt 0:00:35]} Rc1 {[%emt 0:02:27]} 53. Rd7+ {[%emt 0:00:31]} Kg8 {[%emt 0:00:22]} 54. Kf4 {[%emt 0:00:44] normal} 1-0

[Event "GER-ch Youth U16 2019"]
[Site "Willingen"]
[Date "2019.06.15"]
[Round "9.11"]
[White "Yi, Danny"]
[Black "Buller, Ian Joshua"]
[Result "1-0"]
[ECO "B93"]
[WhiteElo "2205"]
[BlackElo "1904"]
[Annotator "ChessBase"]
[PlyCount "57"]
[EventDate "2019.06.07"]
[EventType "swiss"]
[EventRounds "9"]
[EventCountry "GER"]
[SourceTitle "playchess.com"]
[Source "ChessBase"]
[SourceQuality "1"]
[TimeControl "40/5400+30:1800+30"]

1. e4 {[%emt 0:00:00]} c5 {[%emt 0:00:00]} 2. Nf3 {[%emt 0:00:00]} d6 {[%emt 0:00:00]} 3. d4 {[%emt 0:00:00]} cxd4 {[%emt 0:00:00]} 4. Nxd4 {[%emt 0:00:00]} Nf6 {[%emt 0:00:00]} 5. Nc3 {[%emt 0:00:00]} a6 {[%emt 0:00:01]} 6. f4 {[%emt 0:00:08]} g6 {[%emt 0:02:52]} 7. Bd3 {[%emt 0:02:53]} Nc6 {[%emt 0:23:50]} 8. Nf3 {[%emt 0:01:01]} Bg7 {[%emt 0:01:48]} 9. O-O {[%emt 0:00:30]} O-O {[%emt 0:00:29]} 10. a3 {[%emt 0:01:41]} b5 {[%emt 0:01:42]} 11. Qe1 {[%emt 0:02:16]} Nd7 {[%emt 0:08:43]} 12. Qh4 {[%emt 0:07:49]} e6 {[%emt 0:02:27]} 13. Qh3 {[%emt 0:08:44]} Re8 {[%emt 0:10:17]} 14. Be3 {[%emt 0:22:05]} Bb7 {[%emt 0:00:59]} 15. Rae1 {[%emt 0:12:21]} Rc8 {[%emt 0:05:33]} 16. f5 {[%emt 0:02:23]} exf5 {[%emt 0:08:00]} 17. exf5 {[%emt 0:02:29]} Nce5 {[%emt 0:00:54]} 18. Ng5 {[%emt 0:07:23]} Nf8 {[%emt 0:00:49]} 19. fxg6 {[%emt 0:04:01]} hxg6 {[%emt 0:00:12]} 20. Bf4 {[%emt 0:09:09]} Rc7 {[%emt 0:04:25]} 21. Nge4 {[%emt 0:02:10]} Nh7 {[%emt 0:12:55]} 22. Qg3 {[%emt 0:01:48]} Re6 {[%emt 0:02:50]} 23. Ng5 {[%emt 0:02:03]} Nxg5 {[%emt 0:00:16]} 24. Bxg5 {[%emt 0:00:12]} Qe8 {[%emt 0:01:54]} 25. Be4 {[%emt 0:03:28]} Nd7 {[%emt 0:05:18]} 26. Bxb7 {[%emt 0:02:04]} Rxb7 {[%emt 0:00:09]} 27. Nd5 {[%emt 0:01:08]} Re5 {[%emt 0:02:13]} 28. Ne7+ {[%emt 0:00:21]} Rxe7 {[%emt 0:02:27]} 29. Rxe7 {[%emt 0:00:09] normal} 1-0

[Event "GER-ch Youth U16 2019"]
[Site "Willingen"]
[Date "2019.06.15"]
[Round "9.12"]
[White "Burian, Simon"]
[Black "Biermann, Florian"]
[Result "1-0"]
[ECO "B41"]
[WhiteElo "2001"]
[BlackElo "2018"]
[Annotator "NA"]
[PlyCount "61"]
[EventDate "2019.06.07"]
[EventType "swiss"]
[EventRounds "9"]
[EventCountry "GER"]
[SourceTitle "playchess.com"]
[Source "ChessBase"]
[SourceQuality "1"]
[TimeControl "40/5400+30:1800+30"]

1. e4 {[%emt 0:00:00]} c5 {[%emt 0:00:00]} 2. Nf3 {[%emt 0:00:00]} e6 {[%emt 0:00:00]} 3. d4 {[%emt 0:00:00]} cxd4 {[%emt 0:00:00]} 4. Nxd4 {[%emt 0:00:00]} a6 {[%emt 0:00:00]} 5. c4 {[%emt 0:00:37]} Nf6 {[%emt 0:01:30]} 6. Nc3 {[%emt 0:00:33]} Qc7 {[%emt 0:00:07]} 7. a3 {[%emt 0:02:02]} d6 {[%emt 0:00:21]} 8. Be2 {[%emt 0:01:12]} Be7 {[%emt 0:00:58]} 9. O-O {[%emt 0:01:10]} b6 {[%emt 0:00:11]} 10. Be3 {[%emt 0:01:25]} Bb7 {[%emt 0:00:27]} 11. f3 {[%emt 0:00:34]} O-O {[%emt 0:00:20]} 12. Rc1 {[%emt 0:03:32]} Nbd7 {[%emt 0:00:31]} 13. b4 {[%emt 0:01:54]} Rac8 {[%emt 0:01:04]} 14. Nb3 {[%emt 0:04:25]} Qb8 {[%emt 0:04:44]} 15. Qd2 {[%emt 0:04:30]} Rfe8 {[%emt 0:09:23]} 16. Rfd1 {[%emt 0:04:56]} Bc6 {[%emt 0:05:15]} 17. Qe1 {[%emt 0:06:08]} Bd8 {[%emt 0:05:42]} 18. Bf4 {[%emt 0:03:20]} Bc7 {[%emt 0:10:23]} 19. Qd2 {[%emt 0:01:33]} Ne5 {[%emt 0:03:25]} 20. Bxe5 {[%emt 0:01:14]} dxe5 {[%emt 0:00:14]} 21. Qe3 {[%emt 0:00:16]} Nh5 {[%emt 0:08:58]} 22. g3 {[%emt 0:03:43]} f5 {[%emt 0:10:13]} 23. Kg2 {[%emt 0:12:25]} Nf6 {[%emt 0:10:16]} 24. Bd3 {[%emt 0:05:45]} g6 {[%emt 0:01:52]} 25. Qh6 {[%emt 0:05:22]} Qa8 {[%emt 0:05:20]} 26. Re1 {[%emt 0:03:22]} Red8 {[%emt 0:04:09]} 27. Bb1 {[%emt 0:01:06]} Rd4 {[%emt 0:01:17]} 28. Nxd4 {[%emt 0:01:56]} exd4 {[%emt 0:00:09]} 29. Nd5 {[%emt 0:00:30]} exd5 {[%emt 0:04:57]} 30. exd5 {[%emt 0:00:06]} Bd7 {[%emt 0:01:17]} 31. Re7 {[%emt 0:00:30] normal} 1-0

[Event "GER-ch Youth U16 2019"]
[Site "Willingen"]
[Date "2019.06.15"]
[Round "9.13"]
[White "Rietschel, Tilo"]
[Black "Jeschke, Jan"]
[Result "1-0"]
[ECO "C18"]
[WhiteElo "2005"]
[BlackElo "1915"]
[Annotator "NA"]
[PlyCount "45"]
[EventDate "2019.06.07"]
[EventType "swiss"]
[EventRounds "9"]
[EventCountry "GER"]
[SourceTitle "playchess.com"]
[Source "ChessBase"]
[SourceQuality "1"]
[TimeControl "40/5400+30:1800+30"]

1. e4 {[%emt 0:00:00]} e6 {[%emt 0:00:00]} 2. d4 {[%emt 0:00:00]} d5 {[%emt 0:00:00]} 3. Nc3 {[%emt 0:00:00]} Bb4 {[%emt 0:00:26]} 4. e5 {[%emt 0:00:01]} c5 {[%emt 0:00:04]} 5. a3 {[%emt 0:00:04]} Bxc3+ {[%emt 0:00:05]} 6. bxc3 {[%emt 0:00:04]} Qc7 {[%emt 0:00:33]} 7. Nf3 {[%emt 0:00:23]} Ne7 {[%emt 0:01:17]} 8. Bd3 {[%emt 0:00:11]} Nbc6 {[%emt 0:00:55]} 9. O-O {[%emt 0:00:14]} Bd7 {[%emt 0:00:53]} 10. a4 {[%emt 0:01:07]} c4 {[%emt 0:03:15]} 11. Be2 {[%emt 0:00:05]} f6 {[%emt 0:07:10]} 12. Re1 {[%emt 0:00:46]} O-O {[%emt 0:04:03]} 13. Ba3 {[%emt 0:07:04]} fxe5 {[%emt 0:06:57]} 14. dxe5 {[%emt 0:01:15]} Rf5 {[%emt 0:10:10]} 15. Bd6 {[%emt 0:01:24]} Qa5 {[%emt 0:00:08]} 16. Bxc4 {[%emt 0:10:11]} Rxf3 {[%emt 0:08:01]} 17. gxf3 {[%emt 0:02:55]} Nf5 {[%emt 0:00:49]} 18. Bb4 {[%emt 0:09:49]} Nxb4 {[%emt 0:01:22]} 19. cxb4 {[%emt 0:03:13]} Qxb4 {[%emt 0:00:13]} 20. Bxd5 {[%emt 0:00:52]} Nd4 {[%emt 0:02:11]} 21. Be4 {[%emt 0:05:55]} Rf8 {[%emt 0:00:28]} 22. c3 {[%emt 0:22:32]} Qxc3 {[%emt 0:01:19]} 23. Re3 {[%emt 0:01:09] normal} 1-0